bitfinex-derivatives/quotes_BNBF0:USTF0_20250807
["timestamp","ask_amount","ask_price","bid_price","bid_amount"]
[1754606204772,0.8634825,784.29,783.99,0.812]
[1754606204971,0.8634825,784.28,783.99,0.812]
[1754606205171,0.8634825,784.27,783.99,0.812]
[1754606205377,0.8634825,784.26,783.99,0.812]
[1754606205569,0.8634825,784.25,783.99,0.812]
[1754606205871,0.8634825,784.24,783.99,0.812]
[1754606206070,0.85766906,784.57,783.99,0.812]
[1754606206276,0.86374389,784.56,783.99,0.812]
[1754606206572,0.86374389,784.55,783.99,0.812]
[1754606206771,0.86374389,784.54,783.99,0.812]
[1754606206975,0.86374389,784.53,783.99,0.812]
[1754606207176,0.86374389,784.52,783.99,0.812]
[1754606207376,0.86374389,784.51,783.99,0.812]
[1754606207673,0.86374389,784.5,783.99,0.812]
[1754606207874,0.86374389,784.49,783.99,0.812]
[1754606208178,0.86374389,784.48,783.99,0.812]
[1754606208373,0.86374389,784.47,783.99,0.812]
[1754606208574,0.86374389,784.46,783.99,0.812]
[1754606208774,0.86374389,784.45,783.99,0.812]
[1754606208978,0.85766906,784.41,783.99,0.812]
[1754606209175,0.86374389,784.4,783.99,0.812]
[1754606209474,0.86374389,784.39,783.99,0.812]
[1754606209674,0.86374389,784.38,784.0,0.778]
[1754606209977,0.86374389,784.37,784.0,0.778]
[1754606210172,0.86374389,784.36,784.0,0.778]
[1754606210374,0.86374389,784.35,784.0,0.778]
[1754606210577,0.86374389,784.34,784.0,0.778]
[1754606210777,0.86374389,784.33,784.0,0.778]
[1754606210977,0.86374389,784.32,784.0,0.778]
[1754606211176,0.86374389,784.31,784.0,0.778]
[1754606211479,0.86374389,784.3,784.0,0.778]
[1754606211677,0.86374389,784.29,784.0,0.778]
[1754606211979,0.85766906,784.42,784.0,0.778]
[1754606211980,0.86374389,784.28,784.0,0.778]
[1754606212276,0.8637079,784.27,784.0,0.778]
[1754606212476,0.8637079,784.26,784.0,0.778]
[1754606212676,0.8637079,784.25,784.0,0.778]
[1754606212879,0.8637079,784.24,784.0,0.778]
[1754606213080,0.85766906,784.42,784.0,0.778]
[1754606213081,0.8637079,784.23,784.0,0.778]
[1754606213278,0.8637079,784.22,784.0,0.778]
[1754606213477,0.8637079,784.21,784.0,0.778]
[1754606213679,0.8637079,784.2,784.0,0.778]
[1754606213876,0.8637079,784.19,784.0,0.778]
[1754606214080,0.8637079,784.18,784.0,0.778]
[1754606214377,0.8637079,784.17,784.0,0.778]
[1754606214581,0.8637079,784.16,784.0,0.778]
[1754606214881,0.8637079,784.15,784.0,0.778]
[1754606215081,0.8637079,784.14,784.0,0.778]
[1754606215279,0.8637079,784.13,784.0,0.778]
[1754606215480,0.8637079,784.12,784.0,0.778]
[1754606215677,0.8637079,784.11,784.0,0.778]
[1754606215978,0.85766906,784.39,784.0,0.778]
[1754606216177,0.86353022,784.38,784.0,0.778]
[1754606216478,0.86353022,784.37,784.0,0.778]
[1754606216682,0.85766906,784.4,784.0,0.778]
[1754606216683,0.86353022,784.36,784.0,0.778]
[1754606216883,0.86353022,784.35,784.0,0.778]
[1754606217083,0.86353022,784.34,784.01,0.891]
[1754606217384,0.86353022,784.33,784.01,0.891]
[1754606217584,0.86353022,784.32,784.01,0.891]
[1754606217782,0.86353022,784.31,784.01,0.891]
[1754606217977,0.86353022,784.3,784.01,0.891]
[1754606218181,0.86353022,784.29,784.01,0.891]
[1754606218378,0.86353022,784.28,784.01,0.891]
[1754606218582,0.86353022,784.27,784.01,0.891]
[1754606218782,0.86353022,784.26,784.01,0.891]
[1754606219085,0.86353022,784.25,784.01,0.891]
[1754606219381,0.86353022,784.24,784.01,0.891]
[1754606219584,0.86353022,784.23,784.01,0.891]
[1754606219787,0.86353022,784.22,784.01,0.891]
[1754606219987,0.86353022,784.21,784.01,0.891]
[1754606220286,0.85766906,784.37,784.01,0.891]
[1754606220287,0.86353022,784.2,784.01,0.891]
[1754606220489,0.86353022,784.19,784.01,0.891]
[1754606220784,0.86353022,784.18,784.01,0.891]
[1754606220987,0.86353022,784.17,784.01,0.891]
[1754606221187,0.86353022,784.16,784.01,0.891]
[1754606221490,0.86353022,784.15,784.01,0.891]
[1754606221688,0.86353022,784.14,784.01,0.891]
[1754606221985,0.86353022,784.13,784.01,0.891]
[1754606222189,0.86353022,784.12,784.01,0.891]
[1754606222388,0.86353022,784.11,784.01,0.891]
[1754606222590,0.86353022,784.1,784.01,0.891]
[1754606222891,0.86282114,784.09,784.01,0.891]
[1754606223087,0.86282114,784.08,784.01,0.891]
[1754606223289,0.86282114,784.07,784.01,0.891]
[1754606223486,0.86282114,784.06,784.01,0.891]
[1754606223688,0.85766906,784.33,784.01,0.891]
[1754606223891,0.86276655,784.32,784.01,0.891]
[1754606224193,0.86276655,784.31,784.01,0.891]
[1754606224393,0.86272259,784.3,784.01,0.891]
[1754606224591,0.86272259,784.29,784.01,0.891]
[1754606224889,0.86272259,784.28,784.01,0.891]
[1754606225092,0.86272259,784.27,784.01,0.891]
[1754606225290,0.86272259,784.26,784.01,0.891]
[1754606225489,0.86272259,784.25,784.01,0.891]
[1754606225694,0.86272259,784.24,784.01,0.891]
[1754606225994,0.86272259,784.23,784.01,0.891]
[1754606226187,0.22188571,784.68,784.01,0.891]
[1754606226188,0.86272259,784.22,784.01,0.891]
[1754606226389,0.86272259,784.21,784.01,0.891]
[1754606226589,0.86272259,784.2,784.01,0.891]
[1754606226793,0.86272259,784.19,784.01,0.891]
[1754606226990,0.86272259,784.18,784.01,0.891]
[1754606227188,0.86272259,784.17,784.01,0.891]
[1754606227493,0.86272259,784.16,784.01,0.891]
[1754606227695,0.86272259,784.15,784.01,0.891]
[1754606227894,0.86272259,784.14,784.01,0.891]
[1754606228093,0.86272259,784.13,784.01,0.891]
[1754606228291,0.86272259,784.12,784.01,0.891]
[1754606228495,0.86272259,784.11,784.01,0.891]
[1754606228694,0.86272259,784.1,784.01,0.891]
[1754606228896,0.86272259,784.09,784.01,0.891]
[1754606229094,0.86272259,784.08,784.01,0.891]
[1754606229395,0.86272259,784.07,784.01,0.891]
[1754606229595,0.86272259,784.06,784.01,0.891]
[1754606229796,0.86272259,784.05,784.01,0.891]
[1754606229996,0.86272259,784.04,784.01,0.891]
[1754606230294,0.85766906,784.33,784.01,0.891]
[1754606230492,0.86236562,784.32,784.01,0.891]
[1754606230698,0.86236562,784.31,784.01,0.891]
[1754606230995,0.86236562,784.3,784.01,0.891]
[1754606231195,0.86236562,784.29,784.01,0.891]
[1754606231498,0.86236562,784.28,784.01,0.891]
[1754606231697,0.86236562,784.27,784.01,0.891]
[1754606231894,0.86236562,784.26,784.01,0.891]
[1754606232097,0.86236562,784.25,784.01,0.891]
[1754606232299,0.86236562,784.24,784.01,0.891]
[1754606232499,0.86236562,784.23,784.01,0.891]
[1754606232702,0.85766906,784.32,784.01,0.891]
[1754606232703,0.86236562,784.22,784.01,0.891]
[1754606232999,0.86236562,784.21,784.01,0.891]
[1754606233200,0.86236562,784.2,784.01,0.891]
[1754606233399,0.86236562,784.19,784.01,0.891]
[1754606233598,0.86236562,784.18,784.01,0.891]
[1754606233802,0.86236562,784.17,784.01,0.891]
[1754606234101,0.86236562,784.16,784.01,0.891]
[1754606234302,0.86236562,784.15,784.01,0.891]
[1754606234498,0.86236562,784.14,784.01,0.891]
[1754606234702,0.86236562,784.13,784.01,0.891]
[1754606234898,0.86236562,784.12,784.01,0.891]
[1754606235101,0.86236562,784.11,784.01,0.891]
[1754606235301,0.86236562,784.1,784.01,0.891]
[1754606235505,0.86236562,784.09,784.01,0.891]
[1754606235704,0.86236562,784.08,784.01,0.891]
[1754606235904,0.86236562,784.07,784.01,0.891]
[1754606236205,0.86236562,784.06,784.01,0.891]
[1754606236406,0.86236562,784.05,784.01,0.891]
[1754606236706,0.85766906,784.36,784.01,0.891]
[1754606236906,0.86200973,784.35,784.01,0.891]
[1754606237103,0.86200973,784.34,784.01,0.891]
[1754606237307,0.86200973,784.33,784.01,0.891]
[1754606237608,0.86200973,784.32,784.01,0.891]
[1754606237807,0.86200973,784.31,784.01,0.891]
[1754606238001,0.86200973,784.3,784.01,0.891]
[1754606238204,0.86200973,784.29,784.01,0.891]
[1754606238404,0.86200973,784.28,784.01,0.891]
[1754606238604,0.86200973,784.27,784.01,0.891]
[1754606238806,0.86200973,784.26,784.01,0.891]
[1754606239005,0.86200973,784.25,784.0,0.778]
[1754606239208,0.86200973,784.24,784.0,0.778]
[1754606239410,0.22188571,784.68,784.0,0.778]
[1754606239411,0.86200973,784.23,784.0,0.778]
[1754606239605,0.22188571,784.68,784.0,0.778]
[1754606239606,0.86200973,784.22,784.0,0.778]
[1754606239804,0.86200973,784.21,784.0,0.778]
[1754606240010,0.86200973,784.2,784.0,0.778]
[1754606240210,0.86200973,784.19,784.0,0.778]
[1754606240408,0.86200973,784.18,784.0,0.778]
[1754606240613,0.86200973,784.17,784.0,0.778]
[1754606240910,0.86200973,784.16,784.0,0.778]
[1754606241110,0.86200973,784.15,784.0,0.778]
[1754606241314,0.86200973,784.14,784.0,0.778]
[1754606241611,0.86200973,784.13,784.0,0.778]
[1754606241910,0.86200973,784.12,784.0,0.778]
[1754606242213,0.86200973,784.11,784.0,0.778]
[1754606242410,0.86200973,784.1,784.0,0.778]
[1754606242610,0.86200973,784.09,784.0,0.778]
[1754606242810,0.86200973,784.08,784.0,1.76]
[1754606243114,0.86200973,784.07,784.0,1.76]
[1754606243314,0.86200973,784.06,784.0,1.76]
[1754606243516,0.86146927,784.05,784.0,1.76]
[1754606243817,0.86146927,784.04,784.0,1.76]
[1754606244116,0.86146927,784.03,784.0,1.76]
[1754606244316,0.86146927,784.02,784.0,1.76]
[1754606244516,0.86146927,784.01,784.0,1.76]
[1754606245214,0.86128234,784.01,784.0,1.76]
[1754606251120,0.85958023,784.01,784.0,1.76]
[1754606256924,0.85575721,784.41,784.0,1.76]
[1754606257128,1.71574159,784.4,784.0,1.76]
[1754606257327,1.71574159,784.39,784.0,1.76]
[1754606257629,0.85998438,784.38,784.0,1.76]
[1754606257826,0.85998438,784.37,784.0,1.76]
[1754606258032,0.85998438,784.36,784.0,1.76]
[1754606258230,0.85998438,784.35,784.0,1.76]
[1754606258427,0.85998438,784.34,784.0,1.76]
[1754606258630,0.85998438,784.33,784.0,1.76]
[1754606258832,0.85998438,784.32,784.0,1.76]
[1754606259030,0.85998438,784.31,784.0,1.76]
[1754606259227,0.85998438,784.3,784.0,1.76]
[1754606259531,0.85998438,784.29,784.0,1.76]
[1754606259731,0.85998438,784.28,784.0,1.76]
[1754606259930,0.85998438,784.27,784.0,1.76]
[1754606260132,0.85998438,784.26,784.0,1.76]
[1754606260428,0.85998438,784.25,784.0,1.76]
[1754606260731,0.85998438,784.24,784.0,1.76]
[1754606260931,0.85998438,784.23,784.0,1.76]
[1754606261127,0.85998438,784.22,784.0,1.76]
[1754606261330,0.85998438,784.21,784.0,1.76]
[1754606261530,0.85998438,784.2,784.0,1.76]
[1754606261831,0.85575721,784.36,784.0,1.76]
[1754606261832,0.85998438,784.19,784.0,1.76]
[1754606262028,0.85998438,784.18,784.0,1.76]
[1754606262231,0.85998438,784.17,784.0,1.76]
[1754606262426,1.1404153,784.65,784.0,1.76]
[1754606262427,0.85998438,784.16,784.0,1.76]
[1754606262631,0.85998438,784.15,784.0,1.76]
[1754606262929,0.85998438,784.14,784.0,1.76]
[1754606263130,0.85998438,784.13,784.0,1.76]
[1754606263329,0.85998438,784.12,784.0,1.76]
[1754606263528,0.85998438,784.11,784.0,1.76]
[1754606263833,0.85998438,784.1,784.0,1.76]
[1754606264128,0.85998438,784.09,784.0,1.76]
[1754606264328,0.85575721,784.16,784.0,1.76]
[1754606264329,0.85998438,784.08,784.0,1.76]
[1754606264529,0.85998438,784.07,784.0,1.76]
[1754606264728,0.85998438,784.06,784.0,1.76]
[1754606264930,0.85998438,784.05,784.0,1.76]
[1754606265128,0.85998438,784.04,784.0,1.76]
[1754606265328,0.85575721,784.15,784.0,1.76]
[1754606265329,0.85998438,784.03,784.0,1.76]
[1754606265532,0.85998438,784.02,784.0,1.76]
[1754606265730,0.85998438,784.01,784.0,1.76]
[1754606265930,0.85998438,784.14,784.0,1.76]
[1754606266128,0.85998438,784.13,784.0,1.76]
[1754606266333,0.85998438,784.12,784.0,1.76]
[1754606266532,0.85998438,784.11,784.0,1.76]
[1754606266731,0.85998438,784.1,784.0,0.982]
[1754606266930,0.85998438,784.09,784.0,0.982]
[1754606267133,0.85998438,784.08,784.0,0.982]
[1754606267332,0.85998438,784.07,784.0,0.982]
[1754606267530,0.85998438,784.06,784.0,0.982]
[1754606267732,0.85998438,784.05,784.0,0.982]
[1754606267933,0.85998438,784.04,784.0,0.982]
[1754606268134,0.85998438,784.03,784.0,0.982]
[1754606268334,0.85998438,784.02,784.0,0.982]
[1754606268534,0.85998438,784.01,784.0,0.982]
[1754606268736,0.85575721,784.04,784.0,0.982]
[1754606268936,0.86138348,784.03,784.0,0.982]
[1754606269234,0.86138348,784.02,784.0,0.982]
[1754606269438,0.86138348,784.01,784.0,0.982]
[1754606270937,0.86138348,784.01,783.99,0.837]
[1754606271138,0.86138348,784.0,783.99,0.837]
[1754606278144,1.71714069,784.0,783.99,0.837]
[1754606280250,0.86138348,784.0,783.99,0.837]
[1754606281950,0.86161744,784.0,783.99,0.837]
[1754606283748,1.71914966,784.0,783.99,0.837]
[1754606284353,0.86161744,784.0,783.99,0.837]
[1754606286654,0.86161744,784.0,783.9,0.703]
[1754606286854,0.85749202,783.92,783.9,0.703]
[1754606287050,1.71910946,783.91,783.9,0.703]
[1754606287453,0.86161744,783.91,783.9,0.703]
[1754606289458,1.71877552,783.91,783.9,0.703]
[1754606289657,1.71877552,783.91,783.67,0.923]
[1754606289855,1.71877552,783.9,783.67,0.923]
[1754606290058,0.86161744,783.89,783.67,0.923]
[1754606290253,0.86161744,783.88,783.67,0.923]
[1754606290456,0.86161744,783.87,783.67,0.923]
[1754606290757,0.86161744,783.86,783.67,0.923]
[1754606290960,0.86161744,783.85,783.67,0.923]
[1754606291254,0.86161744,783.84,783.67,0.923]
[1754606291460,0.86161744,783.83,783.67,0.923]
[1754606291758,0.86161744,783.82,783.67,0.923]
[1754606291958,0.85715808,783.91,783.67,0.923]
[1754606291959,0.86161744,783.81,783.67,0.923]
[1754606292158,0.86161744,783.8,783.67,0.923]
[1754606292355,0.86161744,783.79,783.68,0.766]
[1754606292560,0.86161744,783.78,783.68,0.766]
[1754606292760,0.86161744,783.77,783.68,0.766]
[1754606292955,0.86161744,783.76,783.68,0.766]
[1754606293157,0.86161744,783.75,783.68,0.766]
[1754606293457,0.86161744,783.74,783.68,0.766]
[1754606293660,0.86161744,783.73,783.68,0.766]
[1754606293860,0.86161744,783.72,783.68,0.766]
[1754606294156,0.86161744,783.71,783.68,0.766]
[1754606294463,0.86161744,783.7,783.68,0.766]
[1754606294762,0.86161744,783.69,783.68,0.766]
[1754606298459,0.86113692,783.69,783.68,0.766]
[1754606312371,0.86113692,783.69,783.67,0.923]
[1754606312568,0.86113692,783.68,783.67,0.923]
[1754606312769,0.86113692,783.76,783.67,0.923]
[1754606312968,0.86113692,783.75,783.67,0.923]
[1754606313174,0.86113692,783.74,783.67,0.923]
[1754606313373,0.86113692,783.73,783.67,0.923]
[1754606313570,0.85715808,783.77,783.67,0.923]
[1754606313571,0.86113692,783.72,783.67,0.923]
[1754606313772,0.86113692,783.71,783.67,0.923]
[1754606313970,0.86113692,783.7,783.67,0.923]
[1754606314171,0.86113692,783.69,783.67,0.923]
[1754606314374,0.86113692,783.68,783.67,0.923]
[1754606314777,0.86113692,783.76,783.67,0.923]
[1754606314977,0.86113692,783.75,783.67,0.923]
[1754606315176,0.86113692,783.74,783.67,0.923]
[1754606315374,0.86113692,783.73,783.67,0.923]
[1754606315576,0.85715808,783.76,783.67,0.923]
[1754606315577,0.86113692,783.72,783.67,0.923]
[1754606315773,0.86113692,783.71,783.67,0.923]
[1754606316074,0.86113692,783.7,783.67,0.923]
[1754606316277,0.86113692,783.69,783.67,0.923]
[1754606316475,0.86113692,783.68,783.67,0.923]
[1754606316679,0.86113692,783.74,783.67,0.923]
[1754606316980,0.86113692,783.73,783.67,0.923]
[1754606317281,0.86113692,783.72,783.67,0.923]
[1754606317478,0.86113692,783.71,783.67,0.923]
[1754606317676,0.86113692,783.7,783.67,0.923]
[1754606317876,0.86113692,783.69,783.67,0.923]
[1754606318082,0.86113692,783.68,783.67,0.923]
[1754606318280,0.86113692,784.02,783.67,0.923]
[1754606319183,1.718295,784.02,783.67,0.923]
[1754606319381,0.86113692,784.01,783.67,0.923]
[1754606319578,2.8711162,785.27,783.67,0.923]
[1754606319579,0.85715808,783.99,783.67,0.923]
[1754606319782,0.85715808,783.93,783.67,0.923]
[1754606319977,0.85715808,783.91,783.67,0.923]
[1754606320278,0.86218178,783.9,783.67,0.923]
[1754606320479,0.86218178,783.89,783.67,0.923]
[1754606320682,0.86218178,783.88,783.67,0.923]
[1754606320882,0.86218178,783.87,783.67,0.923]
[1754606321083,0.86218178,783.86,783.67,0.923]
[1754606321283,0.86218178,783.85,783.67,0.923]
[1754606321479,0.86218178,783.84,783.67,0.923]
[1754606321779,0.86218178,783.83,783.67,0.923]
[1754606321982,0.86218178,783.82,783.67,0.923]
[1754606322183,0.86218178,783.81,783.67,0.923]
[1754606322385,0.86218178,783.8,783.67,0.923]
[1754606322584,0.86218178,783.79,783.67,0.923]
[1754606322778,0.86218178,783.78,783.67,0.923]
[1754606322982,0.86218178,783.77,783.67,0.923]
[1754606323280,0.86218178,783.76,783.67,0.923]
[1754606323482,0.86218178,783.75,783.67,0.923]
[1754606323681,0.86218178,783.74,783.67,0.923]
[1754606323883,0.85715808,783.93,783.67,0.923]
[1754606323884,0.86218178,783.73,783.67,0.923]
[1754606324180,0.86218178,783.72,783.67,0.923]
[1754606324385,0.86218178,783.71,783.67,0.923]
[1754606324581,0.86218178,783.7,783.67,0.923]
[1754606324786,0.86218178,783.69,783.67,0.923]
[1754606324986,0.86218178,783.68,783.67,0.923]
[1754606325489,1.71933986,783.92,783.67,0.923]
[1754606325783,0.86218178,783.91,783.67,0.923]
[1754606327487,0.86286146,783.9,783.67,0.923]
[1754606327684,0.86286146,783.89,783.67,0.923]
[1754606327987,0.86286146,783.88,783.67,0.923]
[1754606328287,0.86286146,783.87,783.67,0.923]
[1754606328586,0.86286146,783.86,783.67,0.923]
[1754606328781,0.85715808,783.9,783.67,0.923]
[1754606328782,0.86286146,783.85,783.67,0.923]
[1754606328982,0.86286146,783.84,783.67,0.923]
[1754606329183,0.86286146,783.83,783.67,0.923]
[1754606329384,0.86286146,783.82,783.67,0.923]
[1754606329584,0.86286146,783.81,783.67,0.923]
[1754606329784,0.86286146,783.8,783.67,0.923]
[1754606329984,0.86286146,783.79,783.67,0.923]
[1754606330182,1.1404153,784.03,783.67,0.923]
[1754606330183,0.86286146,783.78,783.67,0.923]
[1754606330387,0.86286146,783.77,783.67,0.923]
[1754606330581,0.86286146,783.76,783.67,0.923]
[1754606330785,0.86286146,783.75,783.67,0.923]
[1754606330984,0.86286146,783.74,783.67,0.923]
[1754606331285,0.86286146,783.73,783.67,0.923]
[1754606331488,0.86286146,783.72,783.67,0.923]
[1754606331686,0.86286146,783.71,783.67,0.923]
[1754606331990,0.86286146,783.7,783.67,0.923]
[1754606332187,0.86286146,783.69,783.67,0.923]
[1754606332492,0.86286146,783.68,783.67,0.923]
[1754606333091,0.86286146,783.81,783.67,0.923]
[1754606333393,1.72001954,783.81,783.67,0.923]
[1754606333588,0.86286146,783.8,783.67,0.923]
[1754606333992,0.86286146,783.79,783.67,0.923]
[1754606334190,0.86286146,783.78,783.67,0.923]
[1754606334390,0.86286146,783.77,783.67,0.923]
[1754606334689,0.86286146,783.76,783.67,0.923]
[1754606334886,0.86286146,783.75,783.67,0.923]
[1754606335091,0.86286146,783.74,783.67,0.923]
[1754606335391,0.86286146,783.73,783.67,0.923]
[1754606335590,0.86286146,783.72,783.67,0.923]
[1754606335792,0.86286146,783.71,783.67,0.923]
[1754606336100,0.86286146,783.7,783.67,0.923]
[1754606336294,0.86286146,783.69,783.67,0.923]
[1754606336496,0.86286146,783.68,783.67,0.923]
[1754606336692,0.86286146,783.84,783.67,0.923]
[1754606338298,0.86286146,783.83,783.67,0.923]
[1754606339193,0.86286146,783.82,783.67,0.923]
[1754606340194,0.86286146,783.81,783.67,0.923]
[1754606340399,0.86286146,783.8,783.67,0.923]
[1754606340593,0.86286146,783.79,783.67,0.923]
[1754606340797,0.86286146,783.78,783.67,0.923]
[1754606340998,0.86286146,783.77,783.67,0.923]
[1754606341199,0.86286146,783.76,783.67,0.923]
[1754606341401,0.86286146,783.75,783.67,0.923]
[1754606341597,0.86286146,783.74,783.67,0.923]
[1754606341800,0.86286146,783.73,783.67,0.923]
[1754606342101,0.85715808,783.81,783.67,0.923]
[1754606342301,0.85715808,783.82,783.65,0.827]
[1754606342598,0.85715808,783.81,783.65,0.827]
[1754606343404,1.72164833,783.8,783.57,0.703]
[1754606343599,0.86449025,783.79,783.57,0.703]
[1754606343904,1.72164833,783.78,783.57,0.703]
[1754606344100,0.86449025,783.77,783.57,0.703]
[1754606344301,0.86449025,783.76,783.57,0.703]
[1754606344600,0.86449025,783.75,783.57,0.703]
[1754606344798,0.86449025,783.74,783.57,0.703]
[1754606345000,0.86449025,783.73,783.57,0.703]
[1754606345299,0.86449025,783.72,783.57,0.703]
[1754606345501,0.86449025,783.71,783.57,0.703]
[1754606345702,0.86449025,783.7,783.57,0.703]
[1754606346007,0.86449025,783.69,783.57,0.703]
[1754606346209,0.86449025,783.68,783.58,1.096]
[1754606346404,0.86449025,783.67,783.58,1.096]
[1754606346608,0.85715808,784.01,783.58,1.096]
[1754606346809,0.86441588,784.0,783.58,1.096]
[1754606347005,0.86441588,783.99,783.58,1.096]
[1754606347210,0.86441588,783.98,783.58,1.096]
[1754606347406,0.86441588,783.97,783.58,1.096]
[1754606347709,0.86441588,783.96,783.58,1.096]
[1754606347907,0.86441588,783.95,783.58,1.096]
[1754606348110,0.86441588,783.94,783.58,1.096]
[1754606348309,0.86441588,783.93,783.58,1.096]
[1754606348507,0.86441588,783.92,783.58,1.096]
[1754606348707,0.86441588,783.91,783.58,1.096]
[1754606348913,0.86441588,783.9,783.58,1.096]
[1754606349111,0.86441588,783.89,783.58,1.096]
[1754606349411,0.86441588,783.88,783.58,1.096]
[1754606349611,0.86441588,783.87,783.58,1.096]
[1754606349813,0.86441588,783.86,783.58,1.096]
[1754606350014,0.86441588,783.85,783.58,1.096]
[1754606350212,0.86441588,783.84,783.58,1.096]
[1754606350411,0.86441588,783.83,783.58,1.096]
[1754606350610,0.86441588,783.82,783.58,1.096]
[1754606350814,0.86441588,783.81,783.58,1.096]
[1754606351115,0.86441588,783.8,783.58,1.096]
[1754606351312,0.86441588,783.79,783.58,1.096]
[1754606351510,0.86441588,783.78,783.58,1.096]
[1754606351711,0.86441588,783.77,783.58,1.096]
[1754606351912,0.86441588,783.76,783.58,1.096]
[1754606352114,0.86441588,783.75,783.58,1.096]
[1754606352411,0.86441588,783.74,783.58,1.096]
[1754606352713,0.86441588,783.73,783.58,1.096]
[1754606352910,0.86441588,783.72,783.58,1.096]
[1754606353211,0.86441588,783.71,783.58,1.096]
[1754606353410,0.86441588,783.7,783.58,1.096]
[1754606353614,0.86441588,783.69,783.58,1.096]
[1754606353811,0.86441588,783.68,783.58,1.096]
[1754606354016,0.86441588,783.67,783.58,1.096]
[1754606354212,0.86441588,783.66,783.58,1.096]
[1754606354412,0.86441588,783.65,783.58,1.096]
[1754606354612,0.86441588,783.64,783.58,1.096]
[1754606354816,0.86441588,783.63,783.58,1.096]
[1754606355016,0.86441588,783.62,783.58,1.096]
[1754606355217,0.85715808,783.89,783.58,1.096]
[1754606355417,0.86395218,783.88,783.58,1.096]
[1754606355717,0.86395218,783.87,783.58,1.096]
[1754606356014,0.86395218,783.86,783.58,1.096]
[1754606356217,0.86395218,783.85,783.58,1.096]
[1754606356413,0.86395218,783.84,783.58,1.096]
[1754606356615,0.86395218,783.83,783.58,1.096]
[1754606356814,0.86395218,783.82,783.58,1.096]
[1754606357013,0.86395218,783.81,783.58,1.096]
[1754606357217,0.86395218,783.8,783.58,1.096]
[1754606357419,0.86395218,783.79,783.58,1.096]
[1754606357617,0.86395218,783.78,783.58,1.096]
[1754606357818,0.86395218,783.77,783.58,1.096]
[1754606358019,0.86395218,783.76,783.58,1.096]
[1754606358316,0.86395218,783.75,783.58,1.096]
[1754606358613,0.86395218,783.74,783.58,1.096]
[1754606358821,0.86395218,783.73,783.58,1.096]
[1754606359016,0.86395218,783.72,783.58,1.096]
[1754606359318,0.86395218,783.71,783.58,1.096]
[1754606359520,0.86395218,783.7,783.58,1.096]
[1754606359716,0.86395218,783.69,783.58,1.096]
[1754606360015,0.86395218,783.68,783.58,1.096]
[1754606360219,0.86395218,783.67,783.58,1.096]
[1754606360421,0.86395218,783.66,783.58,1.096]
[1754606360720,0.86407181,783.65,783.58,1.096]
[1754606360919,0.86407181,783.64,783.58,1.096]
[1754606361117,0.85715808,783.93,783.58,1.096]
[1754606361118,0.86409811,783.63,783.58,1.096]
[1754606361323,0.86409811,783.62,783.58,1.096]
[1754606361522,0.86409811,783.61,783.58,1.096]
[1754606361720,0.86409811,783.6,783.58,1.096]
[1754606361924,1.07921865,783.94,783.58,1.096]
[1754606362222,0.86411417,783.93,783.58,1.096]
[1754606362418,0.86411417,783.92,783.58,1.096]
[1754606362620,0.86411417,783.91,783.58,1.096]
[1754606362819,0.86411417,783.9,783.58,1.096]
[1754606363019,0.86411417,783.89,783.58,1.096]
[1754606363219,0.86411417,783.88,783.58,1.096]
[1754606363424,0.86411417,783.87,783.58,1.096]
[1754606363722,0.86421402,783.86,783.58,1.096]